DEPARTMENT FAMILY,ENTITY,DATE,EXPENSE TYPE,EXPENSE AREA,SUPPLIER,TRANSACTION NUMBER,AMOUNT,DESCRIPTION
DEPARTMENT OF HEALTH,BLACKPOOL TEACHING HOSPITALS NHS FT,09-Apr-14,PACEMAKERS,CARDIOLOGY,MEDTRONIC LTD,5116258,"39,996.00",APPLIANCES AND IMPLANTS
DEPARTMENT OF HEALTH,BLACKPOOL TEACHING HOSPITALS NHS FT,09-Apr-14,PACEMAKERS,CARDIOLOGY,MEDTRONIC LTD,5116264,"53,772.00",APPLIANCES AND IMPLANTS
DEPARTMENT OF HEALTH,BLACKPOOL TEACHING HOSPITALS NHS FT,01-Apr-14,BLOOD PRODUCTS,CARDIOLOGY,NHS BLOOD AND TRANSPLANT,5114007,"200,417.25",BLOOD PRODUCTS
DEPARTMENT OF HEALTH,BLACKPOOL TEACHING HOSPITALS NHS FT,22-Apr-14,BLOOD PRODUCTS,CARDIOLOGY,NHS BLOOD AND TRANSPLANT,5118938,"200,417.25",BLOOD PRODUCTS
DEPARTMENT OF HEALTH,BLACKPOOL TEACHING HOSPITALS NHS FT,03-Apr-14,EXTERNAL CONTRACTS : LAUNDRY,SOFT FM,EXPRESS LAUNDERERS,5114242,"62,000.00",LAUNDRY SERVICES
DEPARTMENT OF HEALTH,BLACKPOOL TEACHING HOSPITALS NHS FT,03-Apr-14,EXTERNAL CONTRACTS : LAUNDRY,SOFT FM,EXPRESS LAUNDERERS,5114243,"62,000.00",LAUNDRY SERVICES
DEPARTMENT OF HEALTH,BLACKPOOL TEACHING HOSPITALS NHS FT,28-Apr-14,EXTERNAL CONTRACTS : LAUNDRY,SOFT FM,EXPRESS LAUNDERERS,5120686,"62,000.00",LAUNDRY SERVICES
DEPARTMENT OF HEALTH,BLACKPOOL TEACHING HOSPITALS NHS FT,28-Apr-14,PHARMACY PRESCRIPTIONS,PHARMACY DRUGS INVENTORY,NHS BUSINESS SERVICES AUTHORITY,5121094,"36,559.50",SERVICES RECEIVED FROM N.H.S. BODIES
DEPARTMENT OF HEALTH,BLACKPOOL TEACHING HOSPITALS NHS FT,16-Apr-14,CONTRACT : PHOTOCOPYING RENTAL AND CHARGES,ICT,CANON (UK) LTD,5118384,"62,963.30",EXTERNAL GENERAL SERVICE CONTRACTS
DEPARTMENT OF HEALTH,BLACKPOOL TEACHING HOSPITALS NHS FT,22-Apr-14,COMPUTER MAINTENANCE,ICT,INTEGRATED MEDICAL SOLUTIONS LTD,5119098,"41,958.00","FURNITURE, OFFICE AND COMPUTER EQUIPMENT"
DEPARTMENT OF HEALTH,BLACKPOOL TEACHING HOSPITALS NHS FT,24-Apr-14,COMPUTER MAINTENANCE,ICT,ASCRIBE LTD,5120052,"30,913.05","FURNITURE, OFFICE AND COMPUTER EQUIPMENT"
DEPARTMENT OF HEALTH,BLACKPOOL TEACHING HOSPITALS NHS FT,14-Apr-14,LABORATORY EQUIPMENT,PATHOLOGY,SIEMENS HEALTHCARE DIAGNOSTICS LTD,5117626,"52,031.98",LABORATORY EQUIPMENT - PURCHASES
DEPARTMENT OF HEALTH,BLACKPOOL TEACHING HOSPITALS NHS FT,23-Apr-14,LABORATORY REAGENTS,PATHOLOGY,ROCHE DIAGNOSTICS LTD,5119401,"38,369.07",LABORATORY EQUIPMENT - PURCHASES
DEPARTMENT OF HEALTH,BLACKPOOL TEACHING HOSPITALS NHS FT,23-Apr-14,LABORATORY CHEMICALS,UCD DIVISION,FRESENIUS MEDICAL CARE RENAL SERVICES (UAE) LTD,5120193,"137,917.80",LABORATORY EQUIPMENT - PURCHASES
DEPARTMENT OF HEALTH,BLACKPOOL TEACHING HOSPITALS NHS FT,23-Apr-14,LABORATORY CHEMICALS,UCD DIVISION,FRESENIUS MEDICAL CARE RENAL SERVICES (UAE) LTD,5120195,"47,274.09",LABORATORY EQUIPMENT - PURCHASES
DEPARTMENT OF HEALTH,BLACKPOOL TEACHING HOSPITALS NHS FT,09-Apr-14,CLINICAL NEGLIGENCE,FINANCE,HEMPSONS SOLICITORS,5116478,"25,447.50",LOSSES AND SPECIAL PAYMENTS
DEPARTMENT OF HEALTH,BLACKPOOL TEACHING HOSPITALS NHS FT,09-Apr-14,MEDICAL AND SURGICAL EQUIPMENT PURCHASES,CARDIOLOGY,MEDTRONIC LTD,5116258,"5,388.00",MEDICAL AND SURGICAL EQUIPMENT PURCHASES
DEPARTMENT OF HEALTH,BLACKPOOL TEACHING HOSPITALS NHS FT,09-Apr-14,MEDICAL AND SURGICAL EQUIPMENT PURCHASES,CARDIOLOGY,MEDTRONIC LTD,5116264,"2,124.00",MEDICAL AND SURGICAL EQUIPMENT PURCHASES
DEPARTMENT OF HEALTH,BLACKPOOL TEACHING HOSPITALS NHS FT,09-Apr-14,DOCUMENT SCANNING,DIVISIONAL MANAGEMENT,HOBS (DRAWING OFFICE SERVICES) LTD,5116209,"23,920.00",DOCUMENT SCANNING
DEPARTMENT OF HEALTH,BLACKPOOL TEACHING HOSPITALS NHS FT,08-Apr-14,SERVICES FROM LOCAL AUTHORITIES,FYLDE & WYRE LOCALITY COMM NURSING & REHAB THERAPIES DIRECTORATE,LANCASHIRE COUNTY COUNCIL,5115821,"31,400.00",SERVICES FROM LOCAL AUTHORITIES
DEPARTMENT OF HEALTH,BLACKPOOL TEACHING HOSPITALS NHS FT,08-Apr-14,SERVICES FROM LOCAL AUTHORITIES,FYLDE & WYRE LOCALITY COMM NURSING & REHAB THERAPIES DIRECTORATE,LANCASHIRE COUNTY COUNCIL,5115824,"93,592.00",SERVICES FROM LOCAL AUTHORITIES
DEPARTMENT OF HEALTH,BLACKPOOL TEACHING HOSPITALS NHS FT,28-Apr-14,HEALTHCARE FROM INDEPENDENT SECTOR,SPECIALIST SURGERY,UCLAN DENTAL CLINIC LIMITED,5120907,"30,134.70",PURCHASE OF HEALTH CARE SERVICES
DEPARTMENT OF HEALTH,BLACKPOOL TEACHING HOSPITALS NHS FT,01-Apr-14,HEALTHCARE FROM INDEPENDENT SECTOR,SPECIALIST SURGERY,SPIRAL HEALTH CIC,5114015,"125,916.67",PURCHASE OF HEALTH CARE SERVICES
DEPARTMENT OF HEALTH,BLACKPOOL TEACHING HOSPITALS NHS FT,01-Apr-14,HEALTHCARE FROM INDEPENDENT SECTOR,NURSE LED UNIT,SPIRAL HEALTH CIC,5114014,"260,461.58",PURCHASE OF HEALTH CARE SERVICES
DEPARTMENT OF HEALTH,BLACKPOOL TEACHING HOSPITALS NHS FT,01-Apr-14,RATES,SOFT FM,BLACKPOOL BOROUGH COUNCIL,5112834,"102,425.00",COMMERCIAL RATES
DEPARTMENT OF HEALTH,BLACKPOOL TEACHING HOSPITALS NHS FT,01-Apr-14,RATES,SOFT FM,BLACKPOOL BOROUGH COUNCIL,5112837,"2,490.33",COMMERCIAL RATES
DEPARTMENT OF HEALTH,BLACKPOOL TEACHING HOSPITALS NHS FT,01-Apr-14,RATES,SOFT FM,FYLDE BOROUGH COUNCIL,5112841,"3,454.33",COMMERCIAL RATES
DEPARTMENT OF HEALTH,BLACKPOOL TEACHING HOSPITALS NHS FT,01-Apr-14,RATES,SOFT FM,WYRE BOROUGH COUNCIL,5113258,"2,530.50",COMMERCIAL RATES
DEPARTMENT OF HEALTH,BLACKPOOL TEACHING HOSPITALS NHS FT,01-Apr-14,RATES,SOFT FM,WYRE BOROUGH COUNCIL,5113259,"5,543.00",COMMERCIAL RATES
DEPARTMENT OF HEALTH,BLACKPOOL TEACHING HOSPITALS NHS FT,03-Apr-14,NON HEALTHCARE SERVICES FROM OTHER NON-NHS BODIES,ICT,ZONEX GROUP LTD,5114238,"34,500.00",PROPERTY RENTAL
DEPARTMENT OF HEALTH,BLACKPOOL TEACHING HOSPITALS NHS FT,30-Apr-14,NON HEALTHCARE SERVICES FROM OTHER NHS BODIES,SPECIALIST MEDICINE,LANCASHIRE TEACHING HOSPITALS NHS FOUNDATION TRUST,5121693,"30,703.00",SERVICES RECEIVED FROM N.H.S. BODIES
DEPARTMENT OF HEALTH,BLACKPOOL TEACHING HOSPITALS NHS FT,10-Apr-14,NON HEALTHCARE SERVICES FROM OTHER NHS BODIES,SPECIALIST MEDICINE,LANCASHIRE TEACHING HOSPITALS NHS FOUNDATION TRUST,5116834,"51,777.00",SERVICES RECEIVED FROM N.H.S. BODIES
DEPARTMENT OF HEALTH,BLACKPOOL TEACHING HOSPITALS NHS FT,28-Apr-14,CONFERENCES AND SEMINARS,NWLA,IMPACT CONSULTING PSYCHOLOGISTS LTD,5120795,"22,805.00",TRAINING
DEPARTMENT OF HEALTH,BLACKPOOL TEACHING HOSPITALS NHS FT,08-Apr-14,UTILITIES,HARD FM,GAZPROM MARKETING AND TRADING RETAIL LTD,5115989,"132,081.90",GAS
DEPARTMENT OF HEALTH,BLACKPOOL TEACHING HOSPITALS NHS FT,09-Apr-14,UTILITIES,HARD FM,UNITED UTILITIES,5116061,"40,518.76",WATER
DEPARTMENT OF HEALTH,BLACKPOOL TEACHING HOSPITALS NHS FT,07-Apr-14,UTILITIES,HARD FM,NPOWER LTD,5115542,"102,509.13",ELECTRICITY
DEPARTMENT OF HEALTH,BLACKPOOL TEACHING HOSPITALS NHS FT,30-Apr-14,X-RAY EQUIPMENT : MAINTENANCE,EBME,PHILIPS HEALTHCARE,5122091,"90,620.38",X-RAY EQUIPMENT - MAINTENANCE
DEPARTMENT OF HEALTH,BLACKPOOL TEACHING HOSPITALS NHS FT,07-Apr-14,NON HEALTHCARE SERVICES FROM OTHER NHS BODIES,DIVISIONAL MANAGEMENT,NHS PROPERTY SERVICES LTD,5115568,"44,721.00",PROPERTY RENTAL
DEPARTMENT OF HEALTH,BLACKPOOL TEACHING HOSPITALS NHS FT,07-Apr-14,NON HEALTHCARE SERVICES FROM OTHER NHS BODIES,DIVISIONAL MANAGEMENT,NHS PROPERTY SERVICES LTD,5115571,"39,698.00",PROPERTY RENTAL
DEPARTMENT OF HEALTH,BLACKPOOL TEACHING HOSPITALS NHS FT,07-Apr-14,NON HEALTHCARE SERVICES FROM OTHER NHS BODIES,DIVISIONAL MANAGEMENT,NHS PROPERTY SERVICES LTD,5115579,"47,962.00",PROPERTY RENTAL
DEPARTMENT OF HEALTH,BLACKPOOL TEACHING HOSPITALS NHS FT,15-Apr-14,NON HEALTHCARE SERVICES FROM OTHER NHS BODIES,DIVISIONAL MANAGEMENT,NHS PROPERTY SERVICES LTD,5117866,"86,658.79",PROPERTY RENTAL
DEPARTMENT OF HEALTH,BLACKPOOL TEACHING HOSPITALS NHS FT,15-Apr-14,NON HEALTHCARE SERVICES FROM OTHER NHS BODIES,DIVISIONAL MANAGEMENT,NHS PROPERTY SERVICES LTD,5117868,"21,667.23",PROPERTY RENTAL
DEPARTMENT OF HEALTH,BLACKPOOL TEACHING HOSPITALS NHS FT,15-Apr-14,NON HEALTHCARE SERVICES FROM OTHER NHS BODIES,DIVISIONAL MANAGEMENT,NHS PROPERTY SERVICES LTD,5117869,"54,365.23",PROPERTY RENTAL
DEPARTMENT OF HEALTH,BLACKPOOL TEACHING HOSPITALS NHS FT,25-Apr-14,NON HEALTHCARE SERVICES FROM OTHER NHS BODIES,DIVISIONAL MANAGEMENT,NHS PROPERTY SERVICES LTD,5120563,"39,698.00",PROPERTY RENTAL
DEPARTMENT OF HEALTH,BLACKPOOL TEACHING HOSPITALS NHS FT,25-Apr-14,NON HEALTHCARE SERVICES FROM OTHER NHS BODIES,DIVISIONAL MANAGEMENT,NHS PROPERTY SERVICES LTD,5120566,"47,962.00",PROPERTY RENTAL
DEPARTMENT OF HEALTH,BLACKPOOL TEACHING HOSPITALS NHS FT,15-Apr-14,NON HEALTHCARE SERVICES FROM OTHER NHS BODIES,DIVISIONAL MANAGEMENT,NHS PROPERTY SERVICES LTD,5117867,"37,890.98",PROPERTY RENTAL
DEPARTMENT OF HEALTH,BLACKPOOL TEACHING HOSPITALS NHS FT,07-Apr-14,NON HEALTHCARE SERVICES FROM OTHER NHS BODIES,DIVISIONAL MANAGEMENT,NHS PROPERTY SERVICES LTD,5115500,"54,365.23",PROPERTY RENTAL
DEPARTMENT OF HEALTH,BLACKPOOL TEACHING HOSPITALS NHS FT,07-Apr-14,NON HEALTHCARE SERVICES FROM OTHER NHS BODIES,DIVISIONAL MANAGEMENT,NHS PROPERTY SERVICES LTD,5115501,"86,658.79",PROPERTY RENTAL
DEPARTMENT OF HEALTH,BLACKPOOL TEACHING HOSPITALS NHS FT,07-Apr-14,NON HEALTHCARE SERVICES FROM OTHER NHS BODIES,DIVISIONAL MANAGEMENT,NHS PROPERTY SERVICES LTD,5115504,"45,469.18",PROPERTY RENTAL
DEPARTMENT OF HEALTH,BLACKPOOL TEACHING HOSPITALS NHS FT,07-Apr-14,NON HEALTHCARE SERVICES FROM OTHER NHS BODIES,DIVISIONAL MANAGEMENT,NHS PROPERTY SERVICES LTD,5115505,"21,667.23",PROPERTY RENTAL
DEPARTMENT OF HEALTH,BLACKPOOL TEACHING HOSPITALS NHS FT,25-Apr-14,NON HEALTHCARE SERVICES FROM OTHER NHS BODIES,DIVISIONAL MANAGEMENT,NHS PROPERTY SERVICES LTD,5120611,"44,721.00",PROPERTY RENTAL
DEPARTMENT OF HEALTH,BLACKPOOL TEACHING HOSPITALS NHS FT,10-Apr-14,CAPITAL PURCHASES,CAPITAL PURCHASES,WILLMOTT DIXON CONSTRUCTION LTD,5116580,"282,525.41",CAPITAL PURCHASES
DEPARTMENT OF HEALTH,BLACKPOOL TEACHING HOSPITALS NHS FT,25-Apr-14,CAPITAL PURCHASES,CAPITAL PURCHASES,WILLMOTT DIXON CONSTRUCTION LTD,5120435,"1,048,224.83",CAPITAL PURCHASES
DEPARTMENT OF HEALTH,BLACKPOOL TEACHING HOSPITALS NHS FT,28-Apr-14,CAPITAL PURCHASES,CAPITAL PURCHASES,WILLMOTT DIXON CONSTRUCTION LTD,5120666,"116,420.71",CAPITAL PURCHASES
DEPARTMENT OF HEALTH,BLACKPOOL TEACHING HOSPITALS NHS FT,30-Apr-14,CAPITAL PURCHASES,CAPITAL PURCHASES,CHRIS BOWKER LTD,5121849,"285,559.74",CAPITAL PURCHASES
DEPARTMENT OF HEALTH,BLACKPOOL TEACHING HOSPITALS NHS FT,01-Apr-14,CAPITAL PURCHASES,CAPITAL PURCHASES,IRISOFT LTD,5113980,"30,879.60",CAPITAL PURCHASES
DEPARTMENT OF HEALTH,BLACKPOOL TEACHING HOSPITALS NHS FT,29-Apr-14,CAPITAL PURCHASES,CAPITAL PURCHASES,ALERT LIFE SCIENCES COMPUTING U.K. LTD,5121209,"36,000.00",CAPITAL PURCHASES
DEPARTMENT OF HEALTH,BLACKPOOL TEACHING HOSPITALS NHS FT,17-Apr-14,CAPITAL PURCHASES,CAPITAL PURCHASES,NHS SUPPLY CHAIN,5118553,"42,226.60",CAPITAL PURCHASES
DEPARTMENT OF HEALTH,BLACKPOOL TEACHING HOSPITALS NHS FT,03-Apr-14,PHARMACY DRUGS INVENTORY,PHARMACY DRUGS INVENTORY,NOVARTIS PHARMACEUTICALS UK LTD,5114668,"28,743.41",PHARMACY STORES 
DEPARTMENT OF HEALTH,BLACKPOOL TEACHING HOSPITALS NHS FT,04-Apr-14,PHARMACY DRUGS INVENTORY,PHARMACY DRUGS INVENTORY,ROCHE PRODUCTS LTD,5115041,"45,751.56",PHARMACY STORES 
DEPARTMENT OF HEALTH,BLACKPOOL TEACHING HOSPITALS NHS FT,09-Apr-14,PHARMACY DRUGS INVENTORY,PHARMACY DRUGS INVENTORY,NOVARTIS PHARMACEUTICALS UK LTD,5116077,"34,733.40",PHARMACY STORES 
DEPARTMENT OF HEALTH,BLACKPOOL TEACHING HOSPITALS NHS FT,09-Apr-14,PHARMACY DRUGS INVENTORY,PHARMACY DRUGS INVENTORY,ROCHE PRODUCTS LTD,5116083,"32,534.76",PHARMACY STORES 
DEPARTMENT OF HEALTH,BLACKPOOL TEACHING HOSPITALS NHS FT,11-Apr-14,PHARMACY DRUGS INVENTORY,PHARMACY DRUGS INVENTORY,ROCHE PRODUCTS LTD,5117153,"25,753.91",PHARMACY STORES 
DEPARTMENT OF HEALTH,BLACKPOOL TEACHING HOSPITALS NHS FT,16-Apr-14,PHARMACY DRUGS INVENTORY,PHARMACY DRUGS INVENTORY,NOVARTIS PHARMACEUTICALS UK LTD,5118197,"40,077.00",PHARMACY STORES 
DEPARTMENT OF HEALTH,BLACKPOOL TEACHING HOSPITALS NHS FT,16-Apr-14,PHARMACY DRUGS INVENTORY,PHARMACY DRUGS INVENTORY,ROCHE PRODUCTS LTD,5118200,"27,520.08",PHARMACY STORES 
DEPARTMENT OF HEALTH,BLACKPOOL TEACHING HOSPITALS NHS FT,16-Apr-14,PHARMACY DRUGS INVENTORY,PHARMACY DRUGS INVENTORY,ROCHE PRODUCTS LTD,5118201,"30,034.68",PHARMACY STORES 
DEPARTMENT OF HEALTH,BLACKPOOL TEACHING HOSPITALS NHS FT,25-Apr-14,PHARMACY DRUGS INVENTORY,PHARMACY DRUGS INVENTORY,NOVARTIS PHARMACEUTICALS UK LTD,5120218,"34,130.87",PHARMACY STORES 
DEPARTMENT OF HEALTH,BLACKPOOL TEACHING HOSPITALS NHS FT,01-Apr-14,INTER NHS MEDICAL STAFF RECHARGES,MULTI-DIVISON,PENNINE ACUTE HOSPITALS NHS TRUST,5114012,"100,000.00",INTER NHS MEDICAL STAFF RECHARGES
DEPARTMENT OF HEALTH,BLACKPOOL TEACHING HOSPITALS NHS FT,01-Apr-14,INTER NHS MEDICAL STAFF RECHARGES,MULTI-DIVISON,PENNINE ACUTE HOSPITALS NHS TRUST,5114013,"550,000.00",INTER NHS MEDICAL STAFF RECHARGES
DEPARTMENT OF HEALTH,BLACKPOOL TEACHING HOSPITALS NHS FT,25-Apr-14,INTER NHS MEDICAL STAFF RECHARGES,MULTI-DIVISON,PENNINE ACUTE HOSPITALS NHS TRUST,5120188,"550,000.00",INTER NHS MEDICAL STAFF RECHARGES
DEPARTMENT OF HEALTH,BLACKPOOL TEACHING HOSPITALS NHS FT,25-Apr-14,INTER NHS MEDICAL STAFF RECHARGES,MULTI-DIVISON,PENNINE ACUTE HOSPITALS NHS TRUST,5120189,"100,000.00",INTER NHS MEDICAL STAFF RECHARGES
DEPARTMENT OF HEALTH,BLACKPOOL TEACHING HOSPITALS NHS FT,08-Apr-14,NHS SUPPLY CHAIN CATALOGUE ITEMS,MULTI-DIVISIONAL CHARGE,NHS SUPPLY CHAIN,5116510,"117,036.68",NHS SUPPLY CHAIN CATALOGUE ITEMS
DEPARTMENT OF HEALTH,BLACKPOOL TEACHING HOSPITALS NHS FT,08-Apr-14,NHS SUPPLY CHAIN CATALOGUE ITEMS,MULTI-DIVISIONAL CHARGE,NHS SUPPLY CHAIN,5116525,"88,494.75",NHS SUPPLY CHAIN CATALOGUE ITEMS
DEPARTMENT OF HEALTH,BLACKPOOL TEACHING HOSPITALS NHS FT,14-Apr-14,NHS SUPPLY CHAIN CATALOGUE ITEMS,MULTI-DIVISIONAL CHARGE,NHS SUPPLY CHAIN,5117395,"145,438.62",NHS SUPPLY CHAIN CATALOGUE ITEMS
DEPARTMENT OF HEALTH,BLACKPOOL TEACHING HOSPITALS NHS FT,18-Apr-14,NHS SUPPLY CHAIN CATALOGUE ITEMS,MULTI-DIVISIONAL CHARGE,NHS SUPPLY CHAIN,5118849,"124,173.76",NHS SUPPLY CHAIN CATALOGUE ITEMS
DEPARTMENT OF HEALTH,BLACKPOOL TEACHING HOSPITALS NHS FT,28-Apr-14,NHS SUPPLY CHAIN CATALOGUE ITEMS,MULTI-DIVISIONAL CHARGE,NHS SUPPLY CHAIN,5121611,"99,649.14",NHS SUPPLY CHAIN CATALOGUE ITEMS
